bitfinex/quotes_BTCUSD_20240810
["timestamp","ask_amount","ask_price","bid_price","bid_amount"]
[1723330262540,1.75337177,61029.0,61026.0,0.0009152]
[1723330262747,1.69598011,61029.0,61026.0,0.0009152]
[1723330262945,1.75336803,61029.0,61026.0,0.0009152]
[1723330263231,1.67276803,61029.0,61026.0,0.0009152]
[1723330263432,1.30852411,61029.0,61028.0,0.0832152]
[1723330263742,1.37852411,61029.0,61028.0,0.0832152]
[1723330263966,1.36452411,61029.0,61028.0,0.0832152]
[1723330264194,1.37852411,61029.0,61028.0,0.0832152]
[1723330264578,1.51438011,61029.0,61028.0,0.0832152]
[1723330264987,1.54238011,61029.0,61028.0,0.0009152]
[1723330265202,1.36452411,61029.0,61028.0,0.0009152]
[1723330265808,1.35052411,61029.0,61028.0,0.0009152]
[1723330266210,1.36452411,61029.0,61028.0,0.0009152]
[1723330267439,0.72852411,61029.0,61028.0,0.0009152]
[1723330268016,1.37852411,61029.0,61028.0,0.0009152]
[1723330268217,1.54238011,61029.0,61028.0,0.0009152]
[1723330268540,1.56240568,61029.0,61028.0,0.0009152]
[1723330268696,1.72626168,61029.0,61028.0,0.0009152]
[1723330269375,1.56240568,61029.0,61028.0,0.0009152]
[1723330270296,1.72626168,61029.0,61028.0,0.0009152]
[1723330270498,1.56240568,61029.0,61028.0,0.0009152]
[1723330270697,1.54840568,61029.0,61028.0,0.0009152]
[1723330270898,1.72626168,61029.0,61028.0,0.0009152]
[1723330271323,1.71226168,61029.0,61028.0,0.0009152]
[1723330271540,1.75626168,61029.0,61028.0,0.0009152]
[1723330272222,1.81382403,61029.0,61028.0,0.0009152]
[1723330276486,1.75626168,61029.0,61028.0,0.0009152]
[1723330276644,1.81398606,61029.0,61028.0,0.0009152]
[1723330277060,1.82055206,61029.0,61028.0,0.0009152]
[1723330280916,1.76282768,61029.0,61028.0,0.0009152]
[1723330281151,1.8205874,61029.0,61028.0,0.0009152]
[1723330281629,1.69810583,61029.0,61028.0,0.0009152]
[1723330282847,1.68410583,61029.0,61028.0,0.0009152]
[1723330283070,1.67010583,61029.0,61028.0,0.0009152]
[1723330283319,1.77950583,61029.0,61028.0,0.0009152]
[1723330287154,1.75150583,61029.0,61028.0,0.0009152]
[1723330287390,1.76550583,61029.0,61028.0,0.0009152]
[1723330287626,1.76565118,61029.0,61028.0,0.0009152]
[1723330287854,1.75165118,61029.0,61028.0,0.0009152]
[1723330288309,1.92980088,61029.0,61028.0,0.0009152]
[1723330289085,1.76565118,61029.0,61028.0,0.0009152]
[1723330289323,1.77965118,61029.0,61028.0,0.0009152]
[1723330289567,1.76565118,61029.0,61028.0,0.0009152]
[1723330289797,1.77965118,61029.0,61028.0,0.0009152]
[1723330290252,1.76565118,61029.0,61028.0,0.0009152]
[1723330290743,1.77965118,61029.0,61028.0,0.0009152]
[1723330291223,1.77972788,61029.0,61028.0,0.0009152]
[1723330291697,1.92701236,61029.0,61028.0,0.0009152]
[1723330293036,1.92703438,61029.0,61028.0,0.0009152]
[1723330293498,1.92712852,61029.0,61028.0,0.0009152]
[1723330294237,1.93712852,61029.0,61028.0,0.0009152]
[1723330294696,1.7901598,61029.0,61028.0,0.0009152]
[1723330295580,1.7801598,61029.0,61028.0,0.0009152]
[1723330298396,1.8607598,61029.0,61028.0,0.0009152]
[1723330300200,2.00789704,61029.0,61028.0,0.0009152]
[1723330300402,1.92729704,61029.0,61028.0,0.0009152]
[1723330300622,2.00789704,61029.0,61028.0,0.0009152]
[1723330301827,1.92640302,61029.0,61028.0,0.0009152]
[1723330302377,1.77926578,61029.0,61028.0,0.0009152]
[1723330305260,1.72094611,61029.0,61028.0,0.0009152]
[1723330305507,1.77909054,61029.0,61028.0,0.0009152]
[1723330306917,1.63709054,61029.0,61028.0,0.0009152]
[1723330307118,1.71769054,61029.0,61028.0,0.0009152]
[1723330308914,1.65954611,61029.0,61028.0,0.0009152]
[1723330309114,1.71761594,61029.0,61028.0,0.0009152]
[1723330309699,1.86141594,61029.0,61028.0,0.0009152]
[1723330312399,1.80334611,61029.0,61028.0,0.0009152]
[1723330312605,1.86131854,61029.0,61028.0,0.0009152]
[1723330312808,1.80334611,61029.0,61028.0,0.0009152]
[1723330313007,1.86131488,61029.0,61028.0,0.0009152]
[1723330314280,1.8614385,61029.0,61028.0,0.0009152]
[1723330315687,2.02705673,61029.0,61028.0,0.0009152]
[1723330315891,1.86140229,61029.0,61028.0,0.0009152]
[1723330316292,2.02700749,61029.0,61028.0,0.0009152]
[1723330316491,2.02700009,61029.0,61028.0,0.0009152]
[1723330316907,1.86140229,61029.0,61028.0,0.0009152]
[1723330317103,2.02700351,61029.0,61028.0,0.0009152]
[1723330317302,1.86140229,61029.0,61028.0,0.0009152]
[1723330317708,2.02699695,61029.0,61028.0,0.0009152]
[1723330322087,2.02725153,61029.0,61028.0,0.0009152]
[1723330322505,1.96894077,61029.0,61028.0,0.0009152]
[1723330322708,2.0275159,61029.0,61028.0,0.0009152]
[1723330323172,2.0275159,61029.0,61020.0,0.0754456]
[1723330323173,0.084939,61021.0,61020.0,0.0754456]
[1723330323390,0.48102405,61021.0,61020.0,0.0754456]
[1723330323622,0.59532395,61021.0,61020.0,0.0754456]
[1723330323832,0.53674882,61021.0,61020.0,0.0754456]
[1723330324041,0.59518704,61021.0,61020.0,0.0754456]
[1723330324478,0.60718704,61021.0,61020.0,0.0754456]
[1723330325529,0.61718704,61021.0,61020.0,0.0754456]
[1723330326851,0.46000531,61021.0,61020.0,0.0754456]
[1723330327109,0.62688331,61021.0,61020.0,0.0754456]
[1723330327309,0.586407,61019.0,61018.0,0.0008946]
[1723330327464,1.60906014,61019.0,61018.0,0.0008946]
[1723330327681,1.62329758,61019.0,61018.0,0.0008946]
[1723330328077,1.70389758,61019.0,61018.0,0.0008946]
[1723330328930,1.63129758,61019.0,61018.0,0.0008946]
[1723330329137,1.72189758,61019.0,61018.0,0.0008946]
[1723330329568,1.71389758,61019.0,61018.0,0.0008946]
[1723330329767,1.72789758,61019.0,61018.0,0.0008946]
[1723330330389,1.71389758,61019.0,61018.0,0.0008946]
[1723330330790,1.70389758,61019.0,61018.0,0.0008946]
[1723330331031,1.71789758,61019.0,61018.0,0.0008946]
[1723330331347,1.70389758,61019.0,61018.0,0.0008946]
[1723330331818,1.71789758,61019.0,61018.0,0.0008946]
[1723330332262,2.05993028,61019.0,61018.0,0.0008946]
[1723330332467,2.05993028,61019.0,61011.0,0.0001]
[1723330332468,0.726874,61012.0,61011.0,0.0001]
[1723330332666,0.726874,61012.0,61003.0,0.009141]
[1723330332667,0.012817,61004.0,61003.0,0.009141]
[1723330332871,1.74136192,61004.0,61003.0,0.009141]
[1723330333078,2.07752987,61004.0,61003.0,0.009141]
[1723330333217,2.07752987,61004.0,61003.0,0.004141]
[1723330333722,2.24167957,61004.0,61003.0,0.004141]
[1723330333932,2.07752987,61004.0,61003.0,0.004141]
[1723330334793,1.92760687,61004.0,61003.0,0.004141]
[1723330335038,1.91360687,61004.0,61003.0,0.004141]
[1723330335259,1.92760687,61004.0,61003.0,0.004141]
[1723330335472,1.94160687,61004.0,61003.0,0.004141]
[1723330335936,1.86100687,61004.0,61003.0,0.004141]
[1723330336132,1.94107497,61004.0,61003.0,0.004141]
[1723330336575,1.88357861,61004.0,61003.0,0.004141]
[1723330337024,1.95065761,61004.0,61003.0,0.004141]
[1723330337465,2.07296687,61004.0,61003.0,0.004141]
[1723330338115,2.07296687,61004.0,61003.0,0.004101]
[1723330338346,2.07296102,61004.0,61003.0,0.004101]
[1723330338582,1.95065761,61004.0,61003.0,0.004101]
[1723330339214,1.89326161,61004.0,61003.0,0.004101]
[1723330339435,1.9910778,61004.0,61003.0,0.004101]
[1723330340345,1.58168087,61004.0,61003.0,0.004101]
[1723330340563,1.34241561,61004.0,61003.0,0.004101]
[1723330340780,1.34241561,61004.0,61003.0,0.080001]
[1723330340781,0.21684861,61004.0,61003.0,0.080001]
[1723330341296,0.29880961,61004.0,61003.0,0.080001]
[1723330341519,0.21684861,61004.0,61003.0,0.080001]
[1723330341747,0.27080961,61004.0,61003.0,0.080001]
[1723330341965,0.29580961,61004.0,61003.0,0.080001]
[1723330342172,0.39580961,61004.0,61003.0,0.080001]
[1723330342390,0.38180961,61004.0,61003.0,0.080001]
[1723330342591,0.13303369,61004.0,61003.0,0.40649]
[1723330342793,0.14003369,61004.0,61003.0,0.242564]
[1723330342992,0.13863937,61004.0,61003.0,0.161964]
[1723330343860,0.13042268,61004.0,61003.0,0.161964]
[1723330344077,0.13742268,61004.0,61003.0,0.161964]
[1723330344285,0.03742268,61004.0,61003.0,0.161964]
[1723330344501,0.03042268,61004.0,61003.0,0.161964]
[1723330344941,0.03742268,61004.0,61003.0,0.161964]
[1723330345154,0.023817,61004.0,61003.0,0.161964]
[1723330345374,0.03042268,61004.0,61003.0,0.161964]
[1723330345585,0.03542268,61004.0,61003.0,0.161964]
[1723330345791,0.03542268,61004.0,61003.0,0.32589]
[1723330346023,0.021817,61004.0,61003.0,0.570416]
[1723330346311,0.021817,61004.0,61003.0,0.32589]
[1723330346717,0.021817,61004.0,61003.0,0.080001]
[1723330346927,0.021817,61004.0,61003.0,0.32589]
[1723330347318,0.03542268,61004.0,61003.0,0.32589]
[1723330347741,0.03542268,61004.0,61003.0,0.161964]
[1723330347952,0.03542268,61004.0,61003.0,0.32589]
[1723330348699,0.021817,61004.0,61003.0,0.32589]
[1723330348895,0.03542268,61004.0,61003.0,0.32589]
[1723330349465,0.03542268,61004.0,61003.0,0.161964]
[1723330349779,0.021817,61004.0,61003.0,0.161964]
[1723330351015,0.022817,61004.0,61003.0,0.080001]
[1723330351221,0.03642268,61004.0,61003.0,0.080001]
[1723330352407,0.03642268,61004.0,61003.0,0.161964]
[1723330352795,0.03542268,61004.0,61003.0,0.161964]
[1723330353009,0.03625468,61004.0,61003.0,0.161964]
[1723330357239,0.03725468,61004.0,61003.0,0.004101]
[1723330357449,0.03625468,61004.0,61003.0,0.004101]
[1723330357652,0.03725468,61004.0,61003.0,0.004101]
[1723330358058,0.03625468,61004.0,61003.0,0.004101]
[1723330358875,0.03625468,61004.0,61003.0,0.086064]
[1723330360883,0.03625468,61004.0,61003.0,0.004101]
[1723330362725,0.03625468,61004.0,61003.0,0.086064]
[1723330364198,0.03725468,61004.0,61003.0,0.086064]
[1723330364401,0.03625468,61004.0,61003.0,0.086064]
[1723330364966,0.03625468,61004.0,61003.0,0.004101]
[1723330365218,0.11435468,61004.0,61003.0,0.004101]
[1723330366132,0.11635468,61004.0,61003.0,0.004101]
[1723330366353,0.17435468,61004.0,61003.0,0.004101]
[1723330366705,0.25831568,61004.0,61003.0,0.004101]
[1723330367873,0.17635468,61004.0,61003.0,0.004101]
[1723330368245,0.25831568,61004.0,61003.0,0.004101]
[1723330369474,0.17635468,61004.0,61003.0,0.004101]
[1723330375423,0.5860536,61004.0,61003.0,0.004101]
[1723330376053,0.7499766,61004.0,61003.0,0.004101]
[1723330376440,1.35893579,61004.0,61003.0,0.004101]
[1723330377328,1.19501279,61004.0,61003.0,0.004101]
[1723330377534,1.1460536,61004.0,61003.0,0.004101]
[1723330378310,1.19501279,61004.0,61003.0,0.004101]
[1723330378515,1.1460536,61004.0,61003.0,0.004101]
[1723330378895,1.35893579,61004.0,61003.0,0.004101]
[1723330379100,1.45893579,61004.0,61003.0,0.004101]
[1723330379507,1.4099766,61004.0,61003.0,0.004101]
[1723330380229,1.2460536,61004.0,61003.0,0.004101]
[1723330380491,1.29302183,61004.0,61003.0,0.004101]
[1723330380702,1.2460536,61004.0,61003.0,0.004101]
[1723330381184,1.31949239,61004.0,61003.0,0.004101]
[1723330381399,1.29502747,61004.0,61003.0,0.004101]
[1723330381611,1.2460536,61004.0,61003.0,0.004101]
[1723330382458,1.29503638,61004.0,61003.0,0.004101]
[1723330382626,1.2460536,61004.0,61003.0,0.004101]
[1723330382831,1.31949239,61004.0,61003.0,0.004101]
[1723330383009,1.2460536,61004.0,61003.0,0.004101]
[1723330383210,1.31949239,61004.0,61003.0,0.004101]
[1723330383442,1.2460536,61004.0,61003.0,0.004101]
[1723330383612,1.31949239,61004.0,61003.0,0.004101]
[1723330383812,1.31955364,61004.0,61003.0,0.004101]
[1723330384357,0.75955364,61004.0,61003.0,0.004101]
[1723330384746,0.6860536,61004.0,61003.0,0.004101]
[1723330385342,0.78405365,61004.0,61003.0,0.004101]
[1723330385517,0.78410591,61004.0,61003.0,0.004101]
[1723330386321,0.5936732,61004.0,61003.0,0.004101]
[1723330386539,0.5221306,61004.0,61003.0,0.004101]
[1723330386772,0.43662937,61004.0,61003.0,0.004101]
[1723330387140,0.37362937,61004.0,61003.0,0.004101]
[1723330387321,0.03625468,61004.0,61003.0,0.490316]
[1723330387736,0.02643768,61004.0,61003.0,0.490316]
[1723330387968,0.012832,61004.0,61003.0,0.490316]
[1723330388160,0.02644216,61004.0,61003.0,0.490316]
[1723330388446,0.012832,61004.0,61003.0,0.490316]
[1723330388647,0.02644216,61004.0,61003.0,0.490316]
[1723330388857,0.02644216,61004.0,61003.0,0.62647051]
[1723330389193,0.012832,61004.0,61003.0,0.62647051]
[1723330389976,0.012832,61004.0,61003.0,0.79039651]
[1723330390202,0.022649,61004.0,61003.0,0.79039651]
[1723330390614,0.022649,61004.0,61003.0,0.62647051]
[1723330390767,0.012832,61004.0,61003.0,0.62647051]
[1723330390974,0.012832,61004.0,61003.0,0.79039651]
[1723330391171,0.012832,61004.0,61003.0,0.62647051]
[1723330391951,0.012832,61004.0,61003.0,0.79039651]
[1723330392333,0.012832,61004.0,61003.0,0.62645878]
[1723330392702,0.012832,61004.0,61003.0,0.62645879]
[1723330393011,0.012832,61004.0,61003.0,0.79038479]
[1723330394025,0.012832,61004.0,61003.0,0.62645879]
[1723330394474,0.012832,61004.0,61003.0,0.79038479]
[1723330394678,0.012832,61004.0,61003.0,0.62645879]
[1723330394995,0.012832,61004.0,61003.0,0.79038479]
[1723330396137,0.012832,61004.0,61003.0,0.490316]
[1723330396256,0.012832,61004.0,61003.0,0.7903825]
[1723330396470,0.007832,61004.0,61003.0,0.7903825]
[1723330396775,0.008832,61004.0,61003.0,0.7903825]
[1723330396977,0.001832,61004.0,61003.0,0.7903825]
[1723330399622,0.001832,61004.0,61003.0,0.79038439]
[1723330400203,0.001832,61004.0,61003.0,0.87098439]
[1723330402269,0.001832,61004.0,61003.0,0.70705839]
[1723330402668,0.001832,61004.0,61003.0,0.87098439]
[1723330403856,0.001832,61004.0,61003.0,0.70705839]
[1723330404301,0.001832,61004.0,61003.0,0.87098439]
[1723330405265,0.001832,61004.0,61003.0,0.63065839]
[1723330406820,0.001832,61004.0,61003.0,0.63065943]
[1723330411160,0.155649,61004.0,61003.0,0.55005943]
[1723330413483,0.155649,61004.0,61003.0,0.63065943]
[1723330414152,0.155649,61004.0,61003.0,0.63067063]
[1723330414552,0.155649,61004.0,61003.0,0.63067002]
[1723330415163,0.073549,61004.0,61003.0,0.63067002]
[1723330417639,0.011649,61004.0,61003.0,0.63067002]
[1723330420990,0.011649,61004.0,61003.0,0.63066117]
[1723330424664,0.011649,61004.0,61003.0,0.63066364]
[1723330425144,0.011649,61004.0,61003.0,0.63066323]
[1723330428342,0.011649,61004.0,61003.0,0.63066218]
[1723330431833,0.011649,61004.0,61003.0,0.494516]
[1723330432104,0.011649,61004.0,61003.0,0.63066002]
[1723330432105,0.001832,61004.0,61003.0,0.63066002]
[1723330432684,0.001832,61004.0,61003.0,0.79458602]
[1723330433307,0.001832,61004.0,61003.0,0.63066002]
[1723330435346,0.001832,61004.0,61003.0,0.658442]
[1723330435610,0.001832,61004.0,61003.0,0.79458426]
[1723330436071,0.001832,61004.0,61003.0,0.63065424]
[1723330436965,0.001832,61004.0,61003.0,0.79458024]
[1723330437574,0.001832,61004.0,61003.0,0.63065424]
[1723330437977,0.001832,61004.0,61003.0,0.79458024]
[1723330438386,0.001832,61004.0,61003.0,0.63065424]
[1723330439266,0.001832,61004.0,61003.0,0.63065781]
[1723330440261,0.001832,61004.0,61003.0,0.65154489]
[1723330443221,0.001832,61004.0,61003.0,0.63065781]
[1723330445141,0.001832,61004.0,61003.0,0.658442]
[1723330445371,0.139832,61004.0,61003.0,0.79458249]
[1723330445810,0.139832,61004.0,61003.0,0.79458224]
[1723330448878,0.139832,61004.0,61003.0,0.79458222]
[1723330451694,0.139832,61004.0,61003.0,0.658442]
[1723330451907,0.139832,61004.0,61003.0,0.79458222]
[1723330452364,0.139832,61004.0,61003.0,0.658442]
[1723330452534,0.139832,61004.0,61003.0,0.79458202]
[1723330453749,0.139832,61004.0,61003.0,0.63065602]
[1723330453943,0.139832,61004.0,61003.0,0.55005602]
[1723330454189,0.139832,61004.0,61003.0,0.63065602]
[1723330457396,0.139832,61004.0,61003.0,0.63066939]
[1723330459997,0.139832,61004.0,61003.0,0.63066877]
[1723330466342,0.062732,61004.0,61003.0,0.63066877]
[1723330467394,0.062732,61004.0,61003.0,0.6306561]
[1723330470154,0.062732,61004.0,61003.0,0.7945821]
[1723330470568,0.062732,61004.0,61003.0,0.6306561]
[1723330471383,0.001832,61004.0,61003.0,0.6306561]
[1723330471561,0.001832,61004.0,61003.0,0.67985022]
[1723330472468,0.001832,61004.0,61003.0,1.08410222]
[1723330472702,0.001832,61004.0,61003.0,1.75878633]
[1723330472703,0.00137684,61004.0,61003.0,1.75878633]
[1723330473073,0.00137684,61004.0,61003.0,1.90636871]
[1723330473188,0.00137684,61004.0,61003.0,1.90635916]
[1723330473592,0.00037684,61004.0,61003.0,1.75877678]
[1723330473793,0.00037684,61004.0,61003.0,1.20734206]
[1723330474014,0.00137684,61004.0,61003.0,1.76158768]
[1723330475194,0.00137684,61004.0,61003.0,1.75858768]
[1723330475574,0.00237684,61004.0,61003.0,1.76158768]
[1723330475746,0.009817,61025.0,61024.0,0.409672]
[1723330475960,0.0280033,61025.0,61024.0,0.409672]
[1723330476165,0.1749033,61025.0,61024.0,0.409672]
[1723330476982,0.1779033,61025.0,61024.0,0.409672]
[1723330477228,0.1819033,61025.0,61024.0,0.409672]
[1723330477757,0.1720863,61025.0,61024.0,0.409672]
[1723330477988,0.1819033,61025.0,61024.0,0.409672]
[1723330478219,0.0251863,61025.0,61024.0,0.758243]
[1723330478453,0.0251863,61025.0,61024.0,1.09121793]
[1723330478454,0.0181863,61025.0,61024.0,1.09121793]
[1723330478693,0.000832,61029.0,61028.0,0.583506]
[1723330478919,0.000832,61029.0,61028.0,0.82109901]
[1723330479151,0.000832,61029.0,61028.0,0.81107057]
[1723330479374,0.147732,61029.0,61028.0,0.81107057]
[1723330479617,0.147732,61029.0,61028.0,0.79018349]
[1723330480064,0.14748403,61029.0,61028.0,0.79018349]
[1723330480274,0.00058403,61029.0,61028.0,0.95418141]
[1723330480507,0.00058403,61029.0,61028.0,0.97699841]
[1723330480740,0.00058403,61029.0,61028.0,0.97699677]
[1723330480969,0.00058403,61029.0,61028.0,0.97717977]
[1723330481405,0.00158403,61029.0,61028.0,0.97717977]
[1723330482659,0.00258403,61029.0,61028.0,0.98117977]
[1723330482910,0.00158403,61029.0,61028.0,0.98117977]
[1723330483126,0.00058403,61029.0,61028.0,0.97717977]
[1723330483346,0.00158403,61029.0,61028.0,0.97717977]
[1723330483555,0.00258403,61029.0,61028.0,0.98117977]
[1723330484216,0.00258403,61029.0,61028.0,0.84510392]
[1723330484430,0.00258403,61029.0,61028.0,0.98117766]
[1723330487702,0.00258403,61029.0,61028.0,0.84510392]
[1723330487902,0.00258403,61029.0,61028.0,0.98117792]
[1723330488259,0.00258403,61029.0,61028.0,0.84510392]
[1723330488461,0.00258403,61029.0,61028.0,0.98117792]
[1723330490069,0.14948403,61029.0,61028.0,0.549721]
[1723330490409,0.14948403,61029.0,61028.0,0.630321]
[1723330490410,0.16770574,61029.0,61028.0,0.630321]
[1723330490604,0.16770574,61029.0,61028.0,0.494247]
[1723330493904,0.16670574,61029.0,61028.0,0.494247]
[1723330494241,0.16770574,61029.0,61028.0,0.63032967]
[1723330494826,0.16670574,61029.0,61028.0,0.490247]
[1723330495056,0.16770574,61029.0,61028.0,0.63032967]
[1723330496440,0.17752274,61029.0,61028.0,0.54972967]
[1723330496612,0.16770574,61029.0,61028.0,0.494247]
[1723330496934,0.17752274,61029.0,61028.0,0.494247]
[1723330497274,0.16770574,61029.0,61028.0,0.494247]
[1723330497695,0.17752274,61029.0,61028.0,0.494247]
[1723330498721,0.17752274,61029.0,61028.0,0.63033313]
[1723330499120,0.17752274,61029.0,61028.0,0.63033403]
[1723330499323,0.16770574,61029.0,61028.0,0.63033403]
[1723330499883,0.16770574,61029.0,61028.0,0.79419303]
[1723330500419,0.14948403,61029.0,61028.0,0.79419303]
[1723330502403,0.14948403,61029.0,61028.0,0.79510713]
[1723330504485,0.06668403,61029.0,61028.0,0.79510713]
[1723330504884,0.06668403,61029.0,61028.0,0.79509542]
[1723330507655,0.06668403,61029.0,61028.0,0.86313318]
[1723330507828,0.06668403,61029.0,61028.0,1.03971462]
[1723330508471,0.00258403,61029.0,61028.0,1.06286537]
[1723330508888,0.00258403,61029.0,61028.0,0.6920201]
[1723330509089,0.00258403,61029.0,61028.0,1.07287237]
[1723330509944,0.00258403,61029.0,61028.0,1.23668729]
[1723330510151,0.00258403,61029.0,61028.0,1.40972929]
[1723330510348,0.00258403,61029.0,61028.0,1.65621996]
[1723330511842,0.00258403,61029.0,61028.0,1.47946822]
[1723330512042,0.00258403,61029.0,61028.0,1.92914701]
[1723330513052,0.00258403,61029.0,61028.0,1.7590601]
[1723330513724,0.00258403,61029.0,61028.0,1.75904712]
[1723330515619,0.00258403,61029.0,61028.0,1.63091655]
[1723330515830,0.00258403,61029.0,61028.0,1.8079663]
[1723330516035,0.00158403,61029.0,61028.0,1.8079663]
[1723330516240,0.00158403,61029.0,61028.0,1.9718253]
[1723330516372,0.000832,61034.0,61033.0,0.913485]
[1723330516580,0.000832,61034.0,61033.0,1.75403285]
[1723330516779,0.000832,61034.0,61033.0,1.80302692]
[1723330516980,0.000832,61034.0,61033.0,1.82752396]
[1723330517182,0.000832,61034.0,61033.0,1.75403285]
[1723330517624,0.000832,61034.0,61033.0,1.82752396]
[1723330517781,0.001832,61034.0,61033.0,1.83752396]
[1723330518627,0.001832,61034.0,61033.0,1.862021]
[1723330518824,0.002832,61034.0,61033.0,1.872021]
[1723330519053,0.002832,61034.0,61033.0,1.77403285]
[1723330519568,0.002832,61034.0,61033.0,1.872021]
[1723330519772,0.002832,61034.0,61033.0,1.87174123]
[1723330520202,0.002832,61034.0,61033.0,1.87172682]
[1723330521754,0.002832,61034.0,61033.0,1.77373867]
[1723330521954,0.06113423,61041.0,61040.0,0.592574]
[1723330522189,0.07937844,61041.0,61040.0,0.99603426]
[1723330522393,0.06113423,61041.0,61040.0,0.99603426]
[1723330522831,0.06113423,61041.0,61040.0,0.99603317]
[1723330523307,0.06113423,61041.0,61040.0,1.00003317]
[1723330523507,0.06113423,61041.0,61040.0,1.00203317]
[1723330526307,0.06113423,61041.0,61040.0,0.86598892]
[1723330526543,0.06113423,61041.0,61040.0,0.92143291]
[1723330526682,0.06113423,61041.0,61040.0,0.90243291]
[1723330526884,0.06113423,61041.0,61040.0,0.98303291]
[1723330527515,0.14443423,61041.0,61040.0,0.9830351]
[1723330527690,0.14443423,61041.0,61040.0,0.73843718]
[1723330527893,0.14443423,61041.0,61040.0,0.81903718]
[1723330530414,0.14443423,61041.0,61040.0,0.81904482]
[1723330531517,0.14443423,61041.0,61040.0,0.682991]
[1723330531733,0.14443423,61041.0,61040.0,0.81904482]
[1723330531943,0.14443423,61041.0,61040.0,0.79604482]
[1723330532166,0.14443423,61041.0,61040.0,0.63221882]
[1723330532367,0.15425123,61041.0,61040.0,0.63221882]
[1723330532775,0.17249576,61041.0,61040.0,0.63221882]
[1723330533328,0.17249576,61041.0,61040.0,0.63223213]
[1723330534148,0.15425123,61041.0,61040.0,0.63223213]
[1723330536345,0.14443423,61041.0,61040.0,0.63223213]
[1723330536553,0.15425123,61041.0,61040.0,0.63223213]
[1723330536754,0.15425123,61041.0,61040.0,0.496165]
[1723330536954,0.15425123,61041.0,61040.0,0.63223138]
[1723330536955,0.14443423,61041.0,61040.0,0.63223138]
[1723330537156,0.16267958,61041.0,61040.0,0.79605738]
[1723330537330,0.14443423,61041.0,61040.0,0.79605738]
[1723330537575,0.16267818,61041.0,61040.0,0.79604857]
[1723330537935,0.14443423,61041.0,61040.0,0.79604857]
[1723330538350,0.14526523,61041.0,61040.0,0.79604857]
[1723330540463,0.14526523,61041.0,61040.0,0.79604513]
[1723330541968,0.14526523,61041.0,61040.0,0.81904513]
[1723330542342,0.14526523,61041.0,61040.0,0.88706956]
[1723330542565,0.14526523,61041.0,61040.0,1.06354023]
[1723330542800,0.14526523,61041.0,61040.0,0.88706956]
[1723330543438,0.14526523,61041.0,61040.0,1.06354023]
[1723330543683,0.14526523,61041.0,61040.0,0.88706956]
[1723330544102,0.14526523,61041.0,61040.0,0.88706946]
[1723330544307,0.14526523,61041.0,61040.0,1.06354013]
[1723330544516,0.14526523,61041.0,61040.0,0.88706946]
[1723330545140,0.14526523,61041.0,61040.0,1.06354013]
[1723330545714,0.14526523,61041.0,61040.0,0.88706946]
[1723330546142,0.14526523,61041.0,61040.0,1.06354013]
[1723330547381,0.14526523,61041.0,61040.0,0.682991]
[1723330547601,0.14526523,61041.0,61040.0,1.06341626]
[1723330549592,0.14526523,61041.0,61040.0,0.81904008]
[1723330550203,0.14526523,61041.0,61040.0,0.81904478]
[1723330550997,0.14526523,61041.0,61040.0,0.682991]
[1723330551171,0.14526523,61041.0,61040.0,0.81904521]
[1723330551568,0.14526523,61041.0,61040.0,0.8190452]
[1723330555031,0.14526523,61041.0,61040.0,0.5516192]
[1723330555372,0.15608223,61041.0,61040.0,0.5516192]
[1723330558106,0.15608223,61041.0,61040.0,0.55163043]
[1723330558879,0.15608223,61041.0,61040.0,0.54563043]
[1723330559080,0.15608223,61041.0,61040.0,0.62923043]
[1723330559308,0.15608223,61041.0,61040.0,0.63023043]
[1723330559508,0.15608223,61041.0,61040.0,0.62923043]
[1723330559665,0.15608223,61041.0,61040.0,0.62623043]
[1723330559864,0.15608223,61041.0,61040.0,0.62723043]
[1723330560912,0.15608223,61041.0,61040.0,0.491165]
[1723330561109,0.15608223,61041.0,61040.0,0.63023167]
[1723330561535,0.15608223,61041.0,61040.0,0.63023163]
[1723330567522,0.15608223,61041.0,61040.0,0.63023086]
[1723330571200,0.15608223,61041.0,61040.0,0.63023169]
[1723330571592,0.15608223,61041.0,61040.0,0.494165]
[1723330571721,0.15608223,61041.0,61040.0,0.63023146]
[1723330572333,0.15608223,61041.0,61040.0,0.63023149]
[1723330572889,0.15608223,61041.0,61040.0,0.494165]
[1723330573237,0.15608223,61041.0,61040.0,0.63023108]
[1723330574859,0.15608223,61041.0,61040.0,0.494165]
[1723330575053,0.15608223,61041.0,61040.0,0.63023126]
[1723330576083,0.14526523,61041.0,61040.0,0.63023126]
[1723330576501,0.14526523,61041.0,61040.0,0.79405726]
[1723330576701,0.14526523,61041.0,61040.0,0.63023126]
[1723330576908,0.15508223,61041.0,61040.0,0.63023126]
[1723330579938,0.14526523,61041.0,61040.0,0.79405726]
[1723330580204,0.06196523,61041.0,61040.0,0.97015574]
[1723330580425,0.06196523,61041.0,61040.0,0.79405726]
[1723330580621,0.06196523,61041.0,61040.0,0.97015574]
[1723330580824,0.06196523,61041.0,61040.0,0.79405726]
[1723330580976,0.06196523,61041.0,61040.0,0.97015574]
[1723330581178,0.06196523,61041.0,61040.0,0.79405726]
[1723330581360,0.06196523,61041.0,61040.0,0.97015574]
[1723330581564,0.06196523,61041.0,61040.0,0.79405726]
[1723330581863,0.06196523,61041.0,61040.0,0.97015574]
[1723330582069,0.06196523,61041.0,61040.0,0.657991]
[1723330582314,0.06196523,61041.0,61040.0,0.79404493]
[1723330582537,0.06196523,61041.0,61040.0,0.657991]
[1723330582865,0.06196523,61041.0,61040.0,0.63021894]
[1723330583072,0.13696523,61041.0,61040.0,0.80629426]
[1723330583256,0.13696523,61041.0,61040.0,0.63021894]
[1723330585311,0.14778223,61041.0,61040.0,0.38579294]
[1723330585533,0.14778223,61041.0,61040.0,0.38580826]
[1723330585534,0.16602897,61041.0,61040.0,0.38580826]
[1723330586383,0.16802897,61041.0,61040.0,0.38580826]
[1723330586944,0.16602897,61041.0,61040.0,0.22198226]
[1723330587188,0.16602897,61041.0,61040.0,0.14006926]
[1723330587189,0.57757989,61041.0,61040.0,0.14006926]
[1723330587377,0.74140389,61041.0,61040.0,0.14006926]
[1723330587620,0.57757989,61041.0,61040.0,0.004]
[1723330588069,0.57757989,61041.0,61040.0,0.001]
[1723330588281,0.009817,61035.0,61034.0,0.0009141]
[1723330588508,0.145817,61035.0,61034.0,0.13700301]
[1723330588732,0.145817,61035.0,61034.0,0.13700499]
[1723330588956,0.16405788,61035.0,61034.0,0.21892599]
[1723330589216,0.16405788,61035.0,61034.0,0.0828351]
[1723330590538,0.16705788,61035.0,61034.0,0.0828351]
[1723330590984,0.16605788,61035.0,61034.0,0.0828351]
[1723330591436,0.16705788,61035.0,61034.0,0.0828351]
[1723330591654,0.16905788,61035.0,61034.0,0.2466781]